bitfinex/quotes_ETHUSD_20251012
["timestamp","ask_amount","ask_price","bid_price","bid_amount"]
[1760229255297,1e-08,3760.9,3760.8,6.44260872]
[1760229255603,1e-08,3760.9,3760.8,7.67260872]
[1760229257203,1e-08,3760.9,3760.8,8.90260872]
[1760229257405,3.07282083,3765.1,3761.0,0.6336]
[1760229257595,5.44172,3765.0,3762.7,0.6336]
[1760229257779,0.41683489,3765.1,3762.8,0.02657595]
[1760229257980,2.65641425,3764.5,3762.8,0.02657595]
[1760229258307,0.4659,3765.5,3762.9,0.6336]
[1760229258509,3.211288,3765.3,3763.0,0.02657454]
[1760229258694,2.65627007,3764.7,3763.0,0.02657454]
[1760229258898,1.92,3764.9,3763.1,0.02657383]
[1760229259204,2.65683074,3763.9,3762.0,3.29173963]
[1760229259418,0.03268783,3764.1,3762.1,0.52117396]
[1760229259715,1.92,3764.5,3762.2,0.6336]
[1760229260015,2.65704136,3763.6,3761.7,0.6336]
[1760229260217,2.65695738,3763.8,3761.9,0.6336]
[1760229260390,0.03268783,3763.7,3763.0,1.23]
[1760229260585,0.03268783,3763.9,3763.0,1.23]
[1760229260792,2.65730659,3763.3,3763.0,1.23]
[1760229260983,2.092666,3763.9,3763.0,1.23]
[1760229261309,2.65681872,3763.9,3763.0,1.23]
[1760229261514,1.92,3763.8,3763.0,1.23]
[1760229261709,1.92,3764.2,3763.1,0.02657383]
[1760229261915,0.1328,3763.9,3763.3,0.1328]
[1760229262097,3.12167043,3765.4,3763.1,0.6336]
[1760229262098,2.65590141,3765.2,3763.1,0.6336]
[1760229262299,0.03268783,3765.1,3763.1,0.6336]
[1760229262500,0.03268783,3765.3,3763.1,0.81996]
[1760229262700,3.635013,3765.2,3763.1,0.81996]
[1760229263014,2.65647418,3764.4,3763.1,0.81996]
[1760229263516,2.6565439,3764.3,3763.1,0.81996]
[1760229263682,0.03268783,3764.5,3763.1,0.6336]
[1760229263881,0.4676,3765.9,3763.1,0.6336]
[1760229263882,9.614579,3765.5,3763.2,0.02657312]
[1760229264083,1.92,3765.0,3763.1,0.6336]
[1760229264285,2.65647453,3764.4,3763.1,0.6336]
[1760229264487,2.65653647,3764.3,3763.1,0.6336]
[1760229264684,2.65618359,3764.8,3763.1,0.6336]
[1760229264915,2.65667991,3764.1,3763.1,0.6336]
[1760229265108,2.6563247,3764.6,3763.1,1.23]
[1760229265321,2.65666627,3764.2,3763.1,1.23]
[1760229265700,2.6567652,3764.0,3763.1,1.23]
[1760229265894,2.65665879,3764.2,3763.1,1.23]
[1760229266097,2.65610475,3765.0,3763.2,0.02657312]
[1760229266295,2.65660942,3764.2,3763.2,0.02657312]
[1760229266896,2.65662267,3764.2,3763.2,0.02657312]
[1760229267206,2.65725495,3764.7,3763.2,0.02657312]
[1760229267405,2.65649034,3764.4,3763.2,0.02657312]
[1760229267606,0.03268783,3764.6,3763.1,2.46]
[1760229267808,2.6566057,3764.3,3763.1,2.46]
[1760229268104,2.6566057,3764.3,3763.2,1.23]
[1760229268318,0.001,3764.7,3763.2,1.845]
[1760229268687,0.001,3764.7,3763.3,0.66017242]
[1760229268889,0.001,3764.7,3763.7,0.6336]
[1760229269129,0.001,3764.7,3763.6,2.5536]
[1760229269314,0.001,3764.7,3763.7,0.52106998]
[1760229269514,0.001,3764.7,3763.8,0.66016889]
[1760229269887,0.001,3764.7,3764.1,2.65665593]
[1760229270123,0.001,3764.7,3764.2,0.6336]
[1760229271128,0.001,3764.7,3764.1,1.23]
[1760229272129,0.001,3764.7,3764.2,0.66016606]
[1760229272437,0.001,3764.7,3764.3,0.31201661]
[1760229272622,0.001,3764.7,3764.4,0.02656465]
[1760229272990,0.001,3764.7,3764.3,0.31201661]
[1760229273534,0.001,3764.7,3764.3,1.54201661]
[1760229273905,0.001,3764.7,3764.4,0.6336]
[1760229274105,0.001,3764.7,3764.6,5.2099247]
[1760229274317,0.13912238,3768.0,3764.5,0.67522196]
[1760229274318,0.13912238,3768.0,3765.7,0.6336]
[1760229274645,0.41632163,3768.2,3766.0,0.6336]
[1760229274942,2.65400752,3767.9,3766.0,0.6336]
[1760229275144,2.65407672,3767.8,3765.9,0.6336]
[1760229275443,30.0,3768.3,3765.5,0.6336]
[1760229275643,0.50028783,3768.2,3764.7,1.23]
[1760229275844,2.65433351,3767.5,3764.7,1.23]
[1760229276014,2.65547866,3765.8,3764.7,1.23]
[1760229276340,2.65556313,3765.7,3765.4,1.23]
[1760229276545,2.65568981,3765.5,3765.4,1.23]
[1760229276974,2.65568981,3765.5,3764.7,1.23]
[1760229276975,2.65618359,3764.8,3764.7,1.23]
[1760229277278,0.4676,3765.5,3764.7,1.23]
[1760229277561,4.57568981,3765.5,3765.4,1.23]
[1760229277996,10.37635881,3765.5,3765.4,1.23]
[1760229278171,2.65618359,3764.8,3764.7,1.23]
[1760229279774,0.4676,3766.1,3764.7,1.23]
[1760229279935,2.65582335,3765.4,3764.8,0.02656183]
[1760229280134,0.03268783,3765.9,3764.7,1.23]
[1760229280335,2.65597824,3765.1,3764.7,2.46]
[1760229280535,2.65591382,3765.2,3764.7,2.46]
[1760229280736,4.5753226,3766.1,3764.7,2.46]
[1760229280962,0.03268783,3766.0,3764.7,2.46]
[1760229281274,2.65618359,3764.8,3764.7,2.46]
[1760229281851,2.65618359,3764.8,3764.7,3.69]
[1760229282059,2.65601997,3765.1,3764.7,3.69]
[1760229282355,0.227,3765.9,3764.7,3.69]
[1760229282356,2.65618359,3764.8,3764.7,3.69]
[1760229282759,2.65598384,3765.1,3764.7,3.69]
[1760229283090,0.1328,3764.8,3764.7,3.69]
[1760229283388,0.1328,3764.8,3764.7,4.92]
[1760229283587,2.65618359,3764.8,3764.7,4.92]
[1760229284358,3.10778359,3764.8,3764.7,4.92]
[1760229284590,3.10778359,3764.8,3764.7,6.15]
[1760229284993,2.65646583,3764.4,3764.3,1.23]
[1760229285173,9.03628283,3764.4,3764.3,1.23]
[1760229285535,10.95628283,3764.4,3764.3,1e-08]
[1760229285858,21.29987883,3764.4,3764.1,1e-08]
[1760229286059,22.58600298,3764.2,3764.1,1e-08]
[1760229286371,14.89469698,3764.2,3764.1,1e-08]
[1760229286576,7.22412598,3764.2,3764.1,1e-08]
[1760229286986,23.87699848,3764.2,3764.1,1e-08]
[1760229287312,22.50563098,3764.2,3764.1,1e-08]
[1760229287605,9.65587614,3764.0,3763.9,1e-08]
[1760229287773,7.80152514,3764.0,3763.9,1e-08]
[1760229287967,5.02834814,3764.0,3763.9,1e-08]
[1760229288208,8.20015614,3764.0,3763.9,1e-08]
[1760229288510,9.53001439,3764.0,3763.9,1e-08]
[1760229288713,8.20015614,3764.0,3763.0,2.46]
[1760229288910,12.94842754,3763.1,3763.0,1e-08]
[1760229289097,12.65779554,3763.1,3763.0,1e-08]
[1760229289311,13.10939554,3763.1,3763.0,1e-08]
[1760229289712,14.4840302,3763.1,3763.0,1e-08]
[1760229289914,13.10939554,3763.1,3763.0,1e-08]
[1760229290114,5.66258354,3763.1,3763.0,1e-08]
[1760229290410,31.2466952,3763.1,3763.0,1e-08]
[1760229290585,25.4841012,3763.1,3763.0,1e-08]
[1760229290786,7.32765754,3763.1,3763.0,1e-08]
[1760229291536,8.7022922,3763.1,3763.0,1e-08]
[1760229291691,32.61748854,3763.1,3763.0,1e-08]
[1760229291891,33.9921232,3763.1,3763.0,1e-08]
[1760229292125,2.65816055,3762.0,3761.9,1e-08]
[1760229292326,8.46980338,3762.0,3761.9,1e-08]
[1760229292499,6.03544155,3762.0,3761.9,1e-08]
[1760229292907,7.95544155,3762.0,3761.9,1e-08]
[1760229293108,2.65886732,3761.0,3760.9,0.002]
[1760229293311,9.97175932,3761.0,3760.9,0.002]
[1760229293617,2.65886732,3761.0,3760.9,0.002]
[1760229294428,2.65886732,3761.0,3760.9,1.232]
[1760229294635,2.6580521,3762.2,3760.9,1.232]
[1760229294636,1.59294309,3765.9,3761.0,1.2488]
[1760229294805,1.59294309,3765.9,3761.1,0.02658796]
[1760229294806,4.410385,3765.3,3761.1,0.02658796]
[1760229295007,0.472,3765.4,3761.7,0.6336]
[1760229295194,0.472,3765.4,3761.0,2.5352]
[1760229295195,0.227,3765.9,3763.5,2.65703573]
[1760229295397,0.227,3765.9,3763.6,0.29227387]
[1760229295398,2.65575816,3765.5,3763.6,0.29227387]
[1760229295594,1.92,3765.5,3763.6,0.29227387]
[1760229295799,2.65583087,3765.3,3763.6,0.26570357]
[1760229296022,2.65616223,3764.9,3762.6,2.65773667]
[1760229296221,2.65621538,3764.8,3762.7,2.65766603]
[1760229296437,2.65618868,3764.8,3762.8,0.02657595]
[1760229296632,3.12776505,3765.4,3762.7,2.65766538]
[1760229296851,2.65638917,3764.6,3762.7,2.6576577]
[1760229297053,2.65638917,3764.6,3762.8,2.92334389]
[1760229297221,2.65638917,3764.6,3762.8,2.94991984]
[1760229297552,2.65638917,3764.6,3762.9,2.65751192]
[1760229297752,2.65638917,3764.6,3763.0,0.02657454]
[1760229298338,2.65652865,3764.4,3763.0,0.02657454]
[1760229298651,1.92,3764.6,3762.8,0.26576577]
[1760229298958,2.65639527,3764.5,3762.9,0.29234235]
[1760229299369,1.92,3764.7,3762.9,0.29234235]
[1760229299649,2.65661188,3764.2,3763.0,0.02657454]
[1760229299856,1.92,3764.8,3763.1,2.65738354]
[1760229300028,1.92,3764.8,3763.2,0.02657312]
[1760229300233,1.92,3764.4,3763.0,1.23]
[1760229300445,1.92,3765.0,3763.0,1.25657454]
[1760229300662,1.92,3765.0,3763.1,0.24865745]
[1760229300961,1.92,3765.0,3763.0,1.25657454]
[1760229300962,1.92,3764.2,3763.0,1.23]
[1760229301129,1.92,3764.3,3763.0,1.23]
[1760229301315,1.92,3764.1,3763.0,1.23]
[1760229301518,1.92,3764.1,3763.0,2.46]
[1760229301719,2.65654204,3764.3,3763.1,0.369]
[1760229301952,1.92,3763.8,3763.1,0.369]
[1760229302343,1.92,3763.8,3763.0,2.46]
[1760229302523,2.6569455,3763.8,3763.0,2.46]
[1760229302924,8.763143,3763.7,3763.0,3.69]
[1760229303158,1.92,3763.1,3763.0,3.69]
[1760229303659,4.57738354,3763.1,3763.0,3.69]
[1760229304021,1.92,3763.1,3763.0,3.69]
[1760229304253,1.92,3763.1,3763.0,4.92]
[1760229304957,4.57738354,3763.1,3763.0,4.92]
[1760229305162,4.57738354,3763.1,3762.1,1.23]
[1760229305163,2.65801924,3762.2,3762.1,1.23]
[1760229305335,5.05001924,3762.2,3762.1,1.23]
[1760229306025,9.68791324,3762.2,3762.1,1.23]
[1760229306226,10.68609524,3762.2,3762.1,1e-08]
[1760229307052,10.46351324,3762.2,3762.1,1e-08]
[1760229307250,16.14641724,3762.2,3762.1,1e-08]
[1760229307470,16.46551769,3762.2,3762.1,1e-08]
[1760229307628,17.1782895,3762.2,3762.1,1e-08]
[1760229308262,17.1782895,3762.2,3760.5,0.002]
[1760229308263,12.51211902,3760.9,3760.5,0.002]
[1760229308461,11.45498113,3760.6,3760.5,0.002]
[1760229308759,4.57915013,3760.6,3760.5,0.002]
[1760229309833,5.05115013,3760.6,3760.5,1.232]
[1760229310037,14.45442913,3760.6,3760.5,1e-08]
[1760229310268,11.16975213,3760.6,3760.5,1e-08]
[1760229310470,9.98132013,3760.6,3760.5,1e-08]
[1760229311061,9.47589413,3760.6,3760.5,1.23000001]
[1760229311276,0.60066559,3761.1,3760.5,1e-08]
[1760229311425,0.7088,3763.8,3760.7,0.6336]
[1760229311761,0.7088,3763.8,3760.8,0.4667]
[1760229311963,1.921,3763.1,3760.9,0.02658938]
[1760229312172,0.001,3763.1,3761.0,0.31522322]
[1760229312354,0.6336,3762.5,3760.5,1e-08]
[1760229312669,1.92,3762.0,3760.5,1e-08]
[1760229312974,0.6336,3762.3,3760.9,1.23]
[1760229312975,2.65886732,3761.0,3760.9,1.23]
[1760229313130,4.57886732,3761.0,3760.9,1.23]
[1760229313761,1.92,3761.0,3760.9,1.23]
[1760229314130,0.417039,3762.6,3760.9,1.23]
[1760229314131,7.413982,3763.0,3760.9,2.9267]
[1760229314353,1.92,3762.3,3760.9,2.9267]
[1760229314524,1.92,3762.5,3760.9,2.9267]
[1760229314853,1.92,3762.6,3761.0,0.33509867]
[1760229315047,1.92,3762.4,3761.0,0.33509867]
[1760229315353,2.65830547,3761.8,3760.9,2.46]
[1760229315585,0.1328,3761.1,3760.9,3.69]
[1760229316356,0.1328,3761.1,3761.0,0.49328867]
[1760229316555,0.1328,3761.1,3761.0,0.02658867]
[1760229316725,11.027855,3763.0,3761.0,0.86494754]
[1760229317063,0.001,3763.1,3762.9,0.1584]
[1760229317428,0.001,3763.1,3763.0,0.4667]
[1760229318430,0.001,3763.1,3763.0,1.6967]
[1760229319733,0.001,3763.1,3763.0,2.9267]
[1760229319925,0.001,3763.1,3763.0,3.23521]
[1760229320589,0.001,3763.1,3763.0,2.46]
[1760229320765,4.57838354,3763.1,3763.0,2.46]
[1760229321138,4.57838354,3763.1,3763.0,3.69]
[1760229321652,6.61334754,3763.1,3763.0,3.69]
[1760229321855,4.57838354,3763.1,3763.0,3.69]
[1760229322058,1.921,3763.1,3763.0,3.69]
[1760229322268,4.57838354,3763.1,3763.0,3.69]
[1760229322470,1.921,3763.1,3763.0,4.5257]
[1760229322672,1.921,3763.1,3763.0,5.7557]
[1760229323273,1.921,3763.1,3763.0,4.92]
[1760229323975,4.57838354,3763.1,3763.0,4.92]
[1760229324147,4.57838354,3763.1,3763.0,6.15]
[1760229324661,1.921,3763.1,3763.0,6.15]
[1760229325041,0.001,3763.1,3763.0,6.598]
[1760229325375,0.001,3763.1,3763.0,6.8098]
[1760229325552,0.001,3763.1,3763.0,8.0398]
[1760229325879,4.57838354,3763.1,3763.0,7.38]
[1760229327207,4.57838354,3763.1,3763.0,8.61]
[1760229327581,9.59185454,3763.1,3763.0,8.61]
[1760229327883,8.85155454,3763.1,3763.0,8.61]
[1760229328593,8.20437654,3763.1,3763.0,9.84]
[1760229328918,5.02728354,3763.1,3763.0,9.84]
[1760229329068,4.57838354,3763.1,3763.0,9.84]
[1760229329703,0.001,3763.1,3763.0,9.84]
[1760229329870,4.57838354,3763.1,3763.0,11.07]
[1760229330194,1.921,3763.1,3763.0,11.07]
[1760229330367,4.57838354,3763.1,3763.0,11.07]
[1760229330568,1.921,3763.1,3763.0,11.07]
[1760229330800,0.001,3763.1,3763.0,11.07]
[1760229331383,4.57838354,3763.1,3763.0,12.3]
[1760229332171,6.62617654,3763.1,3763.0,12.3]
[1760229332371,4.57838354,3763.1,3763.0,12.3]
[1760229332772,6.58555054,3763.1,3763.0,13.53]
[1760229333068,13.74667454,3763.1,3763.0,13.53]
[1760229333286,12.44373654,3763.1,3763.0,13.53]
[1760229333820,12.44373654,3763.1,3763.0,1e-08]
[1760229334171,13.8183712,3763.1,3763.0,1e-08]
[1760229334369,14.4519712,3763.1,3763.0,1e-08]
[1760229334881,9.786353,3763.1,3763.0,1e-08]
[1760229335082,0.001,3763.5,3763.0,0.44800001]
[1760229335282,0.001,3763.5,3763.1,0.448]
[1760229335672,0.001,3763.5,3763.2,0.448]
[1760229335874,0.001,3763.5,3763.3,0.6158]
[1760229336275,0.001,3763.5,3763.4,0.448]
[1760229337077,0.001,3763.5,3763.4,1.678]
[1760229338404,0.001,3763.5,3763.4,2.908]
[1760229339885,0.001,3763.5,3763.4,4.138]
[1760229340715,0.001,3763.5,3763.4,3.69]
[1760229341202,0.001,3763.5,3763.4,5.3698]
[1760229342124,0.001,3763.5,3763.4,4.92]
[1760229342327,0.001,3763.5,3763.4,5.8618]
[1760229342528,0.001,3763.5,3763.4,7.0918]
[1760229342691,0.001,3763.5,3763.4,7.2246]
[1760229343690,0.001,3763.5,3763.4,7.0918]
[1760229343923,0.001,3763.5,3763.4,7.38]
[1760229344895,1.921,3763.5,3763.4,7.38]
[1760229345090,2.6581011,3763.5,3763.4,7.38]
[1760229345294,2.6581011,3763.5,3763.4,8.61]
[1760229345543,13.7371461,3763.5,3763.4,8.61]
[1760229345824,13.7371461,3763.5,3763.4,6.92120964]
[1760229346001,13.7371461,3763.5,3763.4,1.85483856]
[1760229346206,4.5781011,3763.5,3763.4,0.1660482]
[1760229346437,9.0507021,3763.5,3763.4,0.1660482]
[1760229346722,4.5781011,3763.5,3763.4,1.3960482]
[1760229346926,4.93054822,3763.5,3763.4,1.3960482]
[1760229347117,4.5781011,3763.5,3763.4,1.3960482]
[1760229347485,5.0118011,3763.5,3763.4,1.3960482]
[1760229347934,4.5781011,3763.5,3763.4,1.3960482]
[1760229348137,4.5781011,3763.5,3763.4,2.6260482]
[1760229348842,0.001,3763.5,3763.4,2.6260482]
[1760229349042,0.001,3763.5,3763.4,3.3411104]
[1760229349411,0.001,3763.5,3763.4,4.59768211]
[1760229349812,0.001,3763.5,3763.4,4.5711104]
[1760229350754,0.001,3763.5,3763.4,5.8011104]
[1760229351965,1.921,3763.5,3763.4,5.0860482]
[1760229352166,1.921,3763.5,3763.4,6.7658482]
[1760229352523,1.921,3763.5,3763.4,6.3160482]
[1760229352936,1.921,3763.5,3763.4,6.7726482]
[1760229353370,1.921,3763.5,3763.4,6.3160482]
[1760229353573,4.5781011,3763.5,3763.4,7.5460482]
[1760229354930,4.5781011,3763.5,3763.4,8.7760482]
[1760229355251,7.0867991,3763.5,3763.4,8.7760482]
[1760229355825,15.3192941,3763.5,3763.4,1e-08]
[1760229356020,16.62221365,3763.5,3763.4,1e-08]
[1760229356421,7.8126391,3763.5,3763.4,1e-08]
[1760229356627,5.0081011,3763.5,3763.4,1e-08]
[1760229356871,4.5781011,3763.5,3763.4,1e-08]
[1760229357161,12.3633861,3763.5,3763.4,1e-08]
[1760229357361,7.8098261,3763.5,3763.4,1e-08]
[1760229357548,5.0081011,3763.5,3763.4,1e-08]
[1760229357750,8.8148901,3763.5,3763.4,1.23000001]
[1760229358066,7.8782301,3763.5,3763.4,1.23000001]
[1760229358262,7.8782301,3763.5,3763.4,1e-08]
[1760229358967,0.001,3763.5,3763.4,1e-08]
[1760229359172,0.001,3763.5,3763.4,1.23000001]
[1760229359334,12.346176,3763.5,3763.4,1.23000001]
[1760229360150,15.0032771,3763.5,3763.4,1e-08]
[1760229360353,0.001,3763.9,3763.4,1e-08]
[1760229360694,2.65494757,3766.6,3763.6,0.6336]
[1760229360875,0.43,3766.8,3763.7,0.02656959]
[1760229361170,0.43,3767.2,3765.0,0.6336]
[1760229361339,4.542863,3767.1,3765.1,0.32897041]
[1760229361547,3.822956,3767.1,3765.2,0.02655901]
[1760229361758,7.369423,3767.3,3765.2,0.02655901]
[1760229361965,2.65480541,3766.8,3765.3,2.65582176]
[1760229362138,2.6548834,3766.7,3765.4,0.29213978]
[1760229362339,2.655016,3766.5,3765.4,0.29213978]
[1760229362635,8.463789,3767.1,3765.0,1.23]
[1760229362862,2.65540424,3766.0,3765.0,1.23]
[1760229363338,2.65540424,3766.0,3765.0,2.46]
[1760229363670,0.43,3767.2,3765.1,0.02655971]
[1760229364045,1.92,3767.0,3765.1,0.02655971]
[1760229364247,1.92,3767.0,3765.2,0.24865597]
[1760229364248,2.65484626,3766.7,3765.2,0.24865597]
[1760229364474,1.92,3766.6,3765.3,0.0265583]
[1760229364686,2.35,3767.7,3765.3,0.6601583]
[1760229364868,0.43,3767.7,3765.3,1.8901583]
[1760229365078,2.65449416,3767.2,3765.7,2.65548662]
[1760229365405,4.57465844,3767.0,3765.8,0.29210344]
[1760229365567,4.57465885,3767.0,3765.8,0.29210344]
[1760229365895,4.57465885,3767.0,3765.8,0.02655478]
[1760229366098,4.57477717,3766.8,3765.8,0.02655478]
[1760229366269,2.65377921,3768.3,3765.8,0.02655478]
[1760229366270,0.6521,3768.7,3765.9,0.66015407]
[1760229366461,2.65347455,3768.7,3766.2,0.6336]
[1760229366664,2.65355998,3768.6,3766.8,0.6336]
[1760229366993,1.92,3768.5,3767.1,2.65452451]
[1760229367158,2.65365564,3768.4,3766.8,0.6336]
[1760229367365,0.43,3768.8,3766.5,2.65497208]
[1760229367564,2.65371979,3768.3,3766.6,0.02654914]
[1760229367788,2.65371979,3768.3,3766.8,1.23]
[1760229368062,1.92,3768.1,3766.9,0.02654702]
[1760229368262,4.57371921,3768.3,3767.0,2.65463233]
[1760229368508,4.5736428,3768.5,3766.9,0.6336]
[1760229368676,0.2221,3769.2,3766.9,3.28829859]
[1760229368875,2.65347459,3768.7,3767.3,2.6544134]
[1760229369058,30.0,3771.9,3768.8,0.6336]
[1760229369259,13.316327,3771.2,3768.9,0.02653294]
[1760229369497,0.2221,3771.3,3769.3,2.65300047]
[1760229369706,5.580185,3771.2,3769.4,0.02652942]
[1760229369875,1.92,3771.0,3769.4,0.02652942]
[1760229370065,0.2221,3771.3,3768.9,0.6336]
[1760229370265,0.2221,3771.3,3767.6,2.65417346]
[1760229370266,0.132,3770.5,3769.9,0.132]
[1760229371689,0.132,3770.5,3770.0,0.02652519]
[1760229371874,0.132,3770.7,3770.0,0.15852519]
[1760229372100,0.132,3770.9,3770.3,0.132]
[1760229372324,0.132,3772.1,3770.6,0.132]
[1760229372631,2.6511299,3772.0,3770.0,1.23]
[1760229372781,1.92,3771.1,3770.0,1.23]
[1760229373131,1.92,3770.3,3770.0,1.23]
[1760229373429,1.92,3770.7,3770.0,1.23]
[1760229373630,4.57244953,3770.1,3770.0,1.23]
[1760229373982,24.88876353,3770.1,3770.0,2.46]
[1760229374612,11.39361853,3770.1,3770.0,2.46]
[1760229375017,18.66628353,3770.1,3770.0,2.46]
[1760229375217,17.20378353,3770.1,3770.0,2.46]
[1760229375416,15.64158253,3770.1,3770.0,2.46]
[1760229375616,14.63317153,3770.1,3770.0,3.69]
[1760229376219,25.19449653,3770.1,3770.0,3.69]
[1760229376629,25.19449653,3770.1,3770.0,3.33755288]
[1760229376921,13.21662753,3770.1,3770.0,4.56755288]
[1760229377219,2.65322366,3769.0,3768.9,1.23]
[1760229377383,4.57322366,3769.0,3768.9,1.23]
[1760229378320,4.57322366,3769.0,3768.9,2.46]
[1760229378528,7.94693366,3769.0,3768.9,2.46]
[1760229378686,7.48676866,3769.0,3768.9,2.46]
[1760229379181,4.57322366,3769.0,3768.9,2.46]
[1760229379386,2.65315599,3769.1,3768.9,2.46]
[1760229379616,0.001,3770.1,3769.0,0.02653223]
[1760229379832,2.65320778,3769.1,3769.0,0.02653223]
[1760229380131,2.65320778,3769.1,3768.9,3.69]
[1760229380132,2.65322366,3769.0,3768.9,3.69]
[1760229380334,2.65322366,3769.0,3768.9,1.11257028]
[1760229380335,8.83389666,3769.0,3768.9,1.11257028]
[1760229380627,6.68821166,3769.0,3768.9,1.11257028]
[1760229380928,1.92,3769.0,3768.9,1.11257028]
[1760229381087,1.92,3769.0,3768.9,2.34257028]
[1760229381814,2.65225529,3770.4,3768.9,2.34257028]
[1760229382032,2.65261984,3769.9,3769.0,0.02653223]
[1760229382229,1.39257345,3771.6,3769.0,0.66013223]
[1760229382230,2.65196144,3770.8,3769.0,0.66013223]
[1760229382526,2.65196144,3770.8,3769.0,1.89013223]
[1760229382527,1.92,3770.7,3769.0,1.89013223]
[1760229382737,0.56999295,3772.5,3770.0,2.65251989]
[1760229382891,0.56999295,3772.5,3770.0,3.31264508]
[1760229383090,0.41587256,3771.6,3770.0,3.88265046]
[1760229383291,0.41587256,3771.6,3770.0,1.23013057]
[1760229383591,0.56999295,3772.5,3770.0,3.28611989]
[1760229383592,0.41585513,3771.7,3770.0,3.28611989]
[1760229383791,4.98718832,3771.7,3770.0,4.51611989]
[1760229384105,2.65083994,3772.4,3770.0,4.51611989]
[1760229384290,0.56999295,3772.5,3770.0,4.51611989]
[1760229384491,1.92,3771.8,3770.0,4.51611989]
[1760229384690,2.65111614,3772.0,3770.0,4.51611989]
[1760229385098,1.92,3771.9,3770.0,4.51611989]
[1760229385429,0.56999295,3772.5,3770.0,5.77264508]
[1760229385724,0.56999295,3772.5,3770.0,5.74611989]
[1760229386429,0.56999295,3772.5,3770.0,3.0936]
[1760229386639,0.56999295,3772.5,3770.0,4.3236]
[1760229386823,0.56999295,3772.5,3770.0,3.69]
[1760229387045,2.65083244,3772.4,3770.0,6.71151989]
[1760229387248,2.65124161,3771.9,3770.0,7.34511989]
[1760229387557,0.56999295,3772.5,3770.1,0.6336]
[1760229387858,0.56999295,3772.5,3772.4,0.6336]
[1760229388862,0.56999295,3772.5,3770.0,4.059]
[1760229389021,0.56999295,3772.5,3770.2,0.5289]
[1760229389221,1.92,3771.9,3770.3,2.67881864]
[1760229389421,1.92,3772.3,3770.1,2.46]
[1760229389656,1.92,3772.1,3770.1,2.46]
[1760229389863,2.545204,3771.2,3770.1,2.46]
[1760229390167,0.2275,3771.8,3770.1,2.46]
[1760229390455,0.56999295,3772.5,3770.2,0.615]
[1760229391256,0.56999295,3772.5,3771.6,2.65138055]
[1760229391420,0.56999295,3772.5,3772.0,2.65108803]
[1760229391620,0.56999295,3772.5,3772.1,0.02651043]
[1760229392155,0.56999295,3772.5,3772.4,2.65083236]
[1760229392856,0.56999295,3772.5,3772.4,0.132]
[1760229394163,0.56999295,3772.5,3772.4,1.362]
[1760229394361,0.56999295,3772.5,3772.4,3.90734068]
[1760229394573,0.56999295,3772.5,3772.4,4.51443236]
[1760229394756,2.64858632,3775.6,3772.6,0.6336]
[1760229394757,2.64864053,3775.6,3772.6,0.6336]
[1760229394956,7.181005,3775.7,3773.1,0.6336]
[1760229395172,2.37895,3775.5,3773.4,0.6336]
[1760229395374,2.64905688,3775.0,3773.5,2.64999623]
[1760229395558,0.4472,3775.8,3772.4,2.46]
[1760229395737,2.64858565,3775.6,3772.4,5.11078521]
[1760229395937,1.92,3773.9,3772.4,2.46]
[1760229396190,2.64914839,3774.8,3772.4,2.46]
[1760229396191,1.92,3773.5,3772.4,2.46]
[1760229396359,2.6500933,3773.5,3772.4,2.46]
[1760229396558,0.001,3772.5,3772.4,2.46]
[1760229397271,0.001,3772.5,3772.4,3.69]
[1760229398286,2.65176209,3772.5,3772.4,3.69]
[1760229398638,4.57176209,3772.5,3772.4,4.92]
[1760229398870,1.921,3772.5,3772.4,4.92]
[1760229399068,0.001,3772.5,3772.4,4.92]
[1760229399470,4.57176209,3772.5,3772.4,4.92]
[1760229400149,4.57176209,3772.5,3772.4,6.15]
[1760229400765,8.59470009,3772.5,3772.4,6.15]
[1760229401160,4.57104318,3772.1,3772.0,1.23]
[1760229402300,18.27664718,3772.1,3772.0,1.23]
[1760229402511,4.57104318,3772.1,3772.0,1.23]
[1760229402712,1.92,3772.0,3770.0,3.69]
[1760229403004,1.92,3771.7,3770.0,3.69]
[1760229403190,2.65133234,3771.7,3770.1,7.08043473]
[1760229403387,1.92,3771.3,3770.2,0.6336]
[1760229403769,1.92,3771.3,3770.2,3.28594756]
[1760229404108,1.92,3771.3,3770.3,2.65230626]
[1760229404316,0.001,3772.5,3770.4,0.59785105]
[1760229404535,2.65103126,3772.2,3771.0,0.6336]
[1760229405207,2.65108394,3772.1,3770.8,2.65190983]
[1760229405414,4.57108394,3772.1,3772.0,12.165829]
[1760229405593,4.57108394,3772.1,3768.9,5.23207437]
[1760229405594,1.92,3772.0,3770.1,4.92]
[1760229405830,1.92,3770.9,3770.1,4.92]
[1760229405999,2.65190154,3770.9,3770.4,1.23]
[1760229406170,2.65155882,3771.4,3770.4,1.23]
[1760229406171,1.92,3771.3,3770.4,1.23]
[1760229406728,2.65216814,3770.5,3770.4,1.23]
[1760229406879,4.57216814,3770.5,3770.4,1.23]
[1760229407474,7.78462214,3770.5,3770.4,1.23]
[1760229408210,5.02166814,3770.5,3770.4,1.23]
[1760229408413,8.93042218,3770.2,3770.1,6.15]
[1760229408571,4.57315327,3769.1,3769.0,1.23]
[1760229408765,0.4495,3770.6,3769.0,1.23]
[1760229408997,1.92,3769.6,3769.0,1.23]
[1760229409303,1.92,3769.4,3769.0,1.23]
[1760229409473,4.57287173,3769.5,3769.0,1.23]
[1760229409672,1.92,3769.1,3769.0,1.23]
[1760229409907,4.57315327,3769.1,3769.0,1.23]
[1760229410072,4.57307867,3769.3,3769.0,1.23]